Cogmind - Beta 9.6 @@@ ROGUE MODE // 2020.04.21 @ 00:27:26 Player: WhySorrowGod Result: Destroyed by S-10 Pest with Light Assault Rifle Performance ------------- Evolutions (0) 0 Regions Visited (1) 200 Robots Destroyed (15) 75 Value Destroyed (213) 213 Prototype IDs (0) 0 Alien Tech Used (0) 0 Bonus (0) 0 TOTAL SCORE: 488 Bonus ------- None Cogmind --------- Core Integrity 0/250 Matter 300/300 Energy 100/100 System Corruption 0% Temperature Cool (0) Movement Core (50) Location -10/Materials Parts ------- > --- POWER (1) -------- (None) > --- PROPULSION (2) --- (None) > --- UTILITY (2) ------ Heat Sink Heat Sink > --- WEAPON (2) ------- (None) > --- INVENTORY (4) ---- Light Assault Rifle Peak State ------------ > --- POWER ------------ Ion Engine > --- PROPULSION ------- Wheel Compact Wheel > --- UTILITY ---------- Small Storage Unit Improved Terrain Scanner > --- WEAPON ----------- Light Assault Rifle Light Assault Rifle > --- INVENTORY -------- Light Ion Engine Aluminum Leg Aluminum Leg [Rating: 8] Favorites ----------- Power Ion Engine Engine Ion Engine Propulsion Compact Wheel Leg Aluminum Leg Wheel Compact Wheel Utility Heat Sink Device Heat Sink Storage Small Storage Unit Weapon Light Assault Rifle Energy Gun Medium Laser Energy Cannon Beam Cannon Ballistic Gun Light Assault Rifle Build | -11 -10 ------- Run | Scr Mat Slots Evolved . | . . Power . | . . Propulsion . | . . Utility . | . . Weapon . | . . Parts Attached 19 | 11 8 Power 2 | 1 1 Engine 2 | 1 1 Core . | . . Reactor . | . . Propulsion 8 | 6 2 Treads . | . . Leg 2 | . 2 Wheel 6 | 6 . Hover . | . . Flight . | . . Utility 4 | 2 2 Device 3 | 1 2 Storage 1 | 1 . Processor . | . . Hackware . | . . Protection . | . . Artifact . | . . Weapon 5 | 2 3 Energy Gun 1 | . 1 Energy Cannon 1 | . 1 Ballistic Gun 3 | 2 1 Ballistic Cannon . | . . Launcher . | . . Special Weapon . | . . Impact Weapon . | . . Slashing Weapon . | . . Piercing Weapon . | . . Special Melee Weapon . | . . Unidentified Prototypes . | . . Parts Lost 6 | . 6 Power 1 | . 1 Propulsion 3 | . 3 Utility . | . . Weapon 2 | . 2 Highest Loss Streak 2 | . 2 Average Slot Usage (%) 84 | . 84 Engine 12 | . 12 Leg 14 | . 14 Wheel 10 | . 10 Device 18 | . 18 Storage 6 | . 6 Energy Gun 3 | . 3 Energy Cannon 3 | . 3 Ballistic Gun 12 | . 12 Naked Turns . | . . Heaviest Build 12 | 12 12 Greatest Support 32 | 32 32 Greatest Overweight (x) . | . . Average Overweight (x) . | . . Largest Inventory Capacity 6 | 6 6 Average Capacity 5 | 5 4 Most Carried 6 | 5 6 Average Carried 2 | 2 2 Final Capacity 6 | 6 4 Final Carried 4 | 4 1 Class Distribution -------------------- 100% | Mutant Dominant Class ---------------- Mutant | -10/Materials Resources | -11 -10 ----------- Run | Scr Mat Matter Collected 441 | 314 127 Remotely . | . . Salvage Created 551 | 108 443 Parts 29 | 7 22 Haulers Intercepted . | . . Recyclers Shooed . | . . Parts Field Recycled . | . . Retrieved Matter . | . . Parts Self-Destructed . | . . Prevented . | . . Kills | -11 -10 ------- Run | Scr Mat Combat Hostiles Destroyed 10 | . 10 Guns 7 | . 7 Cannons 3 | . 3 Classes Destroyed 5 | 2 3 Tunneler 1 | 1 . Recycler 3 | 1 2 Watcher 1 | . 1 Swarmer 7 | . 7 Grunt 3 | . 3 Best Kill Streak 6 | 2 6 Combat Bots Only 4 | . 4 Max Kills in Single Turn 1 | 1 1 Gunslinging . | . . Exploded . | . . Melee . | . . Uniques/NPCs Destroyed . | . . Combat | -11 -10 -------- Run | Scr Mat Damage Taken 909 | . 909 Core 256 | . 256 Absorbed by Shields . | . . Core Remaining (%) 100 | 100 . Volleys Fired 44 | 7 37 Largest 2 | 2 2 Hottest 110 | 40 110 Shots Fired 80 | 14 66 Gun 68 | 14 54 Cannon 12 | . 12 Launcher . | . . Special . | . . Kinetic 64 | 14 50 Thermal 16 | . 16 Explosive . | . . Electromagnetic . | . . Robot Hit Streak 12 | 3 12 Robot Miss Streak 4 | 2 4 Penetration Max . | . . Secondary Targets . | . . Shots Hit Robots 49 | 6 43 Core Hits 26 | 3 23 Critical Hits 1 | . 1 Critical Kills . | . . Critical Parts Destroyed 1 | . 1 Melee Attacks . | . . Impact . | . . Slashing . | . . Piercing . | . . Sneak Attacks . | . . Combat Hostiles . | . . Follow-up Attacks . | . . Damage Inflicted 576 | 61 515 Guns 364 | 61 303 Cannons 195 | . 195 Explosions . | . . Melee . | . . Ramming 17 | . 17 Kinetic 327 | 61 266 Thermal 232 | . 232 Explosive . | . . Electromagnetic . | . . Impact . | . . Slashing . | . . Piercing . | . . Highest Corruption . | . . Average Corruption . | . . Corruption Purged . | . . Overload Shots . | . . Overflow Damage . | . . Projectiles . | . . Explosions . | . . Melee . | . . Knockbacks . | . . Impact . | . . Kinetic . | . . Secondary . | . . Self-Inflicted Damage 4 | . 4 Shots . | . . Rammed 12 | . 12 Targets Rammed 14 | . 14 Kicked 2 | . 2 Crushed . | . . Highest Temperature 16 | . 16 Average Temperature 7 | . 7 Received Heat Transfer 114 | . 114 Siege Activations . | . . Robots Corrupted . | . . Combat Hostiles . | . . Parts Fried . | . . Impact Corruptions . | . . Robots Melted . | . . Combat Hostiles . | . . Parts Melted . | . . Heat Transferred 518 | . 518 Parts Sabotaged . | . . Parts Stolen . | . . Parts Stripped . | . . Power Chain Reactions . | . . Missiles Intercepted . | . . Alert | -11 -10 ------- Run | Scr Mat Peak Influence 263 | 10 263 Average Influence 108 | 4 153 Maximum Alert Level 1 | . 1 Low Security (%) 57 | 100 39 Level 1 42 | . 60 Level 2 . | . . Level 3 . | . . Level 4 . | . . Level 5 . | . . High Security . | . . Max Security . | . . Squads Dispatched 2 | . 2 Investigation . | . . Extermination . | . . Reinforcement 2 | . 2 Assault . | . . Garrison . | . . Intercept . | . . Construction Impeded . | . . Haulers Reinforced . | . . Stealth | -11 -10 --------- Run | Scr Mat Distress Signals 2 | . 2 Communications Jammed . | . . Distress Signals . | . . Times Spotted 28 | . 28 Peak Tracking Total 6 | . 6 Tactical Retreats 3 | . 3 Traps | -11 -10 ------- Run | Scr Mat Traps Triggered . | . . Indirectly . | . . Trap Hack Attempts . | . . Triggered . | . . Disarmed . | . . Reprogrammed . | . . Reused . | . . Traps Extracted . | . . Installed . | . . Triggered . | . . Machines | -11 -10 ---------- Run | Scr Mat Machines Disabled . | . . Max in Single Turn . | . . Machines Sabotaged . | . . Garrisons Compromised . | . . Overloaded Fab Kills . | . . Fab Network Shutdowns . | . . Hacking | -11 -10 --------- Run | Scr Mat Machines Accessed 2 | . 2 Terminals 2 | . 2 Fabricators . | . . Repair Stations . | . . Recycling Units . | . . Scanalyzers . | . . Garrison Access . | . . Total Hacks 4 | . 4 Successful 4 | . 4 Failed . | . . Catastrophic . | . . Database Lockouts . | . . Manual . | . . Terminals 4 | . 4 Fabricators . | . . Repair Stations . | . . Recycling Units . | . . Scanalyzers . | . . Garrison Access . | . . Terminal Hacks 4 | . 4 Record 4 | . 4 Fabricator Hacks . | . . Repair Station Hacks . | . . Recycling Unit Hacks . | . . Scanalyzer . | . . Garrison Access Hacks . | . . Unauthorized Hacks . | . . Terminals . | . . Fabricators . | . . Repair Stations . | . . Recycling Units . | . . Scanalyzers . | . . Garrison Access . | . . Data Cores Recovered . | . . Used . | . . Hacking Detections 1 | . 1 Full Trace Events . | . . Feedback Events . | . . Feedback Blocked . | . . Robot Schematics Acquired . | . . Robots Built . | . . Matter . | . . Time . | . . Total Robot Build Rating . | . . Part Schematics Acquired . | . . Parts Built . | . . Matter . | . . Time . | . . Total Part Build Rating . | . . Parts Repaired . | . . Time . | . . Parts Recycled . | . . Recycled Matter . | . . Retrieved Matter . | . . Retrieved Components . | . . Parts Scanalyzed . | . . Part Schematics Acquired . | . . Parts Damaged . | . . Bothacking | -11 -10 ------------ Run | Scr Mat Used RIF Installer . | . . Robots Hacked . | . . Non-combat . | . . Combat . | . . Robot Hacks Applied . | . . Relay Couplers Released . | . . Robots Rewired . | . . Allies Hacked . | . . Hacks Repelled . | . . Allies | -11 -10 -------- Run | Scr Mat Total Allies . | . . Largest Group . | . . Highest-Rated Group . | . . Highest-Rated Ally . | . . Total Orders . | . . Ally Attacks . | . . Total Damage . | . . Kills . | . . Allies Corrupted . | . . Allies Melted . | . . Intel | -11 -10 ------- Run | Scr Mat Robot Analysis Total . | . . Derelict Logs Recovered . | . . Drone Launches . | . . Drone Recoveries . | . . Exploration | -11 -10 ------------- Run | Scr Mat Turns Passed 553 | 167 386 Spaces Moved 373 | 141 232 Core 36 | 26 10 Treads . | . . Legs 128 | . 128 Wheels 209 | 115 94 Hover . | . . Flight . | . . Fastest Speed 50 | 50 50 Average Speed 99 | 84 108 Slowest Speed 120 | 100 120 Overloaded Moves . | . . Propulsion Burnouts . | . . Robots Hopped . | . . Cave-ins Triggered . | . . Exploration Rate (%) 17 | 7 27 Regions Visited 1 Branch Regions . Pre-discovered Areas . | . . Known Exits Taken . | . . Unknown Exits Taken 1 | 1 . Scrap Searched . | . . Spaces Dug . | . . Terrain Destroyed . | . . Melee . | . . Projectile . | . . AOE . | . . Actions | -11 -10 --------- Run | Scr Mat Total 492 | 181 311 Wait 6 | 2 4 Move 372 | 140 232 Hop . | . . Pick Up 17 | 14 3 Fast Attach 3 | . 3 Attach 16 | 11 5 Detach 9 | 4 5 Swap . | . . Drop 11 | 3 8 Fire 44 | 7 37 Melee . | . . Ram 1 | . 1 Kick 13 | . 13 Crush . | . . Escape Stasis . | . . Rewire . | . . Trap . | . . Miscellaneous . | . . Route ------- -11/Scrapyard -10/Materials History --------- Turn | Location | Event 58 | -11/Scrapyard | Discovered new exit (range 16) 168 | -11/Scrapyard | Entered Materials 317 | -10/Materials | Build established: Mutant 506 | -10/Materials | Core integrity fell below 50% 524 | -10/Materials | Core integrity fell below 20% 554 | -10/Materials | Destroyed by S-10 Pest with Light Assault Rifle Last Messages --------------- 00492_ R-06 Scavenger destroyed. 00493_ K-01 Serf collects debris. 00494_ R-06 Scavenger collects Aluminum Leg. 00494_ G-34 Mercenary destroyed. 00497_ R-06 Scavenger collects Aluminum Leg. 00498_ Beam Cannon destroyed. 00498_ Slammed into S-10 Pest. 00502_ R-06 Scavenger collects Flight Unit. 00503_ Lgt. Ion Engine destroyed. 00503_ Slammed into S-10 Pest. 00509_ Kicked S-10 Pest out of the way. 00510_ Slammed into S-10 Pest. 00510_ Destabilizing: Core damaged (-12). 00523_ S-10 Pest destroyed. 00527_ Slammed into K-01 Serf. 00539_ Aluminum Leg destroyed. 00544_ K-01 Serf cleans the Atomic Centrifuge. 00547_ Aluminum Leg destroyed. 00551_ Slammed into A-02 Transporter. 00551_ K-01 Serf cleans the Repair Station. Map ----- +----------------------------------------------------+ | ?????????????????????????????????????????????? | | ?????????????????????????????????????????????? | | ???????????????????? ???????????????????????? | | ???????????????????? #???????????????????????? | | ???????????????????? ##+#????????????????????? | | ???????????????????? ?????????????????????? | | ??????????????????? #????????????????????? | | ??????????????????? ?????????????????????? | | ??????????????????? ??##?????????????????? | | ??????????????????? +?????????????????? | | ??????????????????? """ #??????????????????? | | ??????????????????? """ #??????????????????? | | ??????????????????? """ ##?????????????????? | | ????????????????### ##+###????????????? | | "Y"############## ???????????? | | +!%% %= ! ???????????? | | ##%######### ???????????? | | ???#%#???????## ### ##????????????????? | | ?????#%#????#####+####? #?????????????????? | | ??????#*##???# # #?????????????????? | | ??????#!##???# """ # #?????????????????? | | ??????#%#????# """ + #?????????????????? | | ??????#%#????# """ # #?????????????????? | | ??????#%#????# ######?????????????????? | | ???##?#%###### " " #########??????????????? | | ??????#%%%= + "R" s% @ +??????????????? | | ???#??#%%%#### """s##### #??????????????? | | ???#??#%[ #??# #???#?? #??????????????? | | ????#?# #??######/###???#??????????????????? | | ?????## #??????## #??#?????????????????????? | | ??????# #?#?????# #?????#??????????????????? | | ????#?# #??#??#?# #????????????????????????? | | ????#?# #?????###/#######?? ???????????????? | | ?"????# #?????# #??????????????????? | | ?????## ##????# """ #??????????????????? | | ###### #????# "T" #??????????????????? | | # %%###### ! #??????????????????? | | + + ! """ #??????????????????? | | # %###### ! """ #??????????????????? | | # #????# * """ # ?????????????????? | | "T" ### ###????# / ?????????????????? | | """ #?# #??????#+######### ???????????????? | | ######?# #??????# #??????????????????????????? | | ???#??## #????#?# #??????????????????????????? | | ???????# #?#????# #???????? ?????????????????? | | ????##?# ######## #??????????????????????????? | | ######## #??????????????????????????? | | # """ # #######??????????????????????????? | | # "T" # #????????????????????????????????? | | # + #???????#?? ?????????????????????? | +----------------------------------------------------+ Best States ------------- Heat Dissipation 45 Energy Generation 10 Energy Capacity 250 Matter Stores 300 Matter Capacity 300 Sight Range 16 Terrain Scan Range 16 Terrain Scan Density 10 Evasion (%) 50 Item Schematics ----------------- None Robot Schematics ------------------ None Fabricated ------------ Nothing Alien Tech Used ----------------- None Achievements -------------- None Challenges ------------ None Game ------ Seed SkeletonTrapCannon Manual? 0 Play Time 00:20:24 Cumulative 20.2 hours Start 2020.04.20 @ 23:55:50 End 2020.04.21 @ 00:27:26 Sessions 1 Manual Loads 0 Difficulty Rogue Special Mode None Game No. 43 Rogue 43 Adventurer 0 Explorer 0 Win Type - Total 0 Types 0/0/0/0/0/0/0 Lore% 6 Gallery% 20 Achievement% 2 Wizard Run 0 Options --------- ASCII 0 Keyboard 0 Movement Numpad Keybinds 0 Fullscreen 1 Font 18/SmallcapsGlow Map View 76x50 Tactical HUD 1 Map Filters NONE Filters NONE Steam 1 RUN: 582f4c49-8698-430f-a0a9-120dcb07f5da